[Event "MCCT Chessable Masters-KO 2022"]
[Site "Online"]
[Date "2022.05.25"]
[Round "3.3"]
[White "Ding, Liren"]
[Black "Praggnanandhaa R"]
[Result "1-0"]
[ECO "E46"]
[WhiteElo "2806"]
[BlackElo "2642"]
[Annotator "TA"]
[PlyCount "97"]
[EventDate "2022.05.23"]
[EventType "k.o."]
[EventCountry "NET"]
[SourceTitle "playchess.com"]
[Source "ChessBase"]
[SourceQuality "1"]
[TimeControl "300+3"]

{[%evp 11,97,-7,0,-4,0,0,0,0,-2,-25,-16,-25,-29,-37,-23,-45,-60,-62,-7,-10,0,-10,88,-19,0,-28,-31,-45,-45,-46,-46,-70,-45,-54,-42,-46,-10,-22,-32,-22,-18,-16,0,0,0,0,62,76,179,62,50,44,28,44,36,21,106,105,292,292,455,463,467,392,400,340,1154,1111,1019,968,1056,1012,29976,29979,29980,29981,29981,29981,29982,29983,29981,29982,29991,29988,29989,29988,29989,29988]} 1. d4 {[%emt 0:00:00]} Nf6 {[%emt 0:00:00]} 2. c4 {[%emt 0:00:01]} e6 {[%emt 0:00:01]} 3. Nc3 {[%emt 0:00:00]} Bb4 {[%emt 0:00:02]} 4. e3 {[%emt 0:00:00]} O-O {[%emt 0:00:01]} 5. Bd2 {[%emt 0:00:00]} d5 {[%emt 0:00:02]} 6. a3 {[%emt 0:00:02]} Be7 {[%emt 0:00:21]} 7. Nf3 {[%emt 0:00:00] E46: Nimzo-Indian: Rubinstein: 4 e3 0-0 5 Ne2 without early Bd3.} b6 {[%emt 0:00:05]} 8. cxd5 {[%emt 0:00:04]} exd5 {[%emt 0:00:02]} 9. Rc1 $5 {[%emt 0:00:00][%mdl 4] The position is equal. An interesting side line.} c5 {[%emt 0:00:07]} 10. dxc5 {[%emt 0:00:11]} bxc5 {[%emt 0:00:03]} 11. Bd3 {[%emt 0:00:00] [#]} Bg4 $146 {[%emt 0:00:22]} ({Predecessor:} 11... Bb7 12. O-O Re8 13. Na4 Nbd7 14. Bc3 Bf8 15. Bb5 Ne4 16. Qd3 Re6 17. Rfd1 a6 18. Bxd7 Qxd7 {0-1 (32) Tkachyov,A (2019)-Agmanov,Z (2417) Nur Sultan 2021}) 12. h3 {[%emt 0:00:03]} Bh5 {[%emt 0:00:01]} 13. Ne2 {[%emt 0:00:06]} Bxf3 {[%emt 0:00:18]} 14. gxf3 {[%emt 0:00:00]} Nbd7 {[%emt 0:00:02]} (14... Nc6 $15) 15. Bc3 $11 {[%emt 0:00:16]} Re8 {[%emt 0:00:21]} 16. O-O {[%emt 0:00:14]} Nf8 {[%emt 0:00:34]} (16... Qb8 $11 {keeps the balance.}) 17. Ng3 {[%emt 0:00:07]} ({White should try} 17. Bb5 $16) 17... Ng6 {[%emt 0:00:01]} 18. Nf5 {[%emt 0:00:03] Inhibits d4.} Bf8 {[%emt 0:00:02][%cal Od5d4]} 19. Bb1 {[%emt 0:00:15]} d4 {[%emt 0:00:29]} 20. exd4 {[%emt 0:00:05]} Nd5 {[%emt 0:00:01][%cal Bf6d5,Bd5f4,Bf4e2][%mdl 32]} 21. dxc5 {[%emt 0:00:54]} Qg5+ {[%emt 0:00:18]} (21... Ngf4 $5 {[%cal Rd8g5]} 22. Kh2 Qc7 $15) 22. Kh2 $1 {[%emt 0:00:01]} (22. Ng3 Ngf4 23. Bd2 (23. Qc2 $2 g6 $19) 23... Nxh3+ 24. Kh2 Ndf4 25. Bxf4 (25. Qc2 $2 g6 $19) 25... Nxf4 $19) 22... Rad8 {[%emt 0:00:23][%mdl 1024] Black has compensation.} (22... Nxc3 23. Rxc3 Re5 24. Ng3 $11) 23. Qa4 $1 {[%emt 0:01:29] [#] Threatens to win with Qg4.} Ndf4 {[%emt 0:01:02][%csl Gf4][%cal Rg5g2]} ({Don't do} 23... Nxc3 24. Rxc3 Qd2 25. Ng3 $14 (25. Qxa7 $2 Re1 $19)) 24. Rg1 {[%emt 0:00:01] Prevents Qg2+.} Qh5 {[%emt 0:00:02][%csl Gf4][%cal Rh5h3]} 25. Rg3 {[%emt 0:00:00]} Ne2 {[%emt 0:00:45]} 26. Rcg1 {[%emt 0:00:48][%cal Ob1e4]} Nxg3 {[%emt 0:00:06]} 27. Rxg3 {[%emt 0:00:06] And now Be4 would win. The board is on fire.} Re2 {[%emt 0:00:03]} 28. Bd4 {[%emt 0:00:49]} Rd2 {[%emt 0:00:42]} (28... Nh4 $1 $11 29. Nxg7 Bxg7 30. Rxg7+ Kf8 31. Rxh7 Qxf3 32. Bg7+ (32. Rxh4 {is a self mate.} Rxf2+ 33. Bxf2 Qxf2+ 34. Kh1 Qf1+ 35. Kh2 Rd2+ 36. Kg3 Rg2#) 32... Kg8 33. Rh8+ Kxg7 34. Rh7+ Kg8 35. Rh8+ Kg7 36. Rh7+ Kg8 37. Rh8+ Kg7) 29. Be3 $1 $14 {[%emt 0:00:23] Hoping for Be4.} R2d5 {[%emt 0:00:01]} (29... Rxb2 $16 30. Qe4 Rxb1 31. Qxb1 Rd5) 30. Rg5 {[%emt 0:00:19]} (30. Qc2 $18) 30... Qxf3 {[%emt 0:00:05] Strongly threatening ...Rd1.} 31. Be4 {[%emt 0:00:01] Active counter play!} Qd1 {[%emt 0:00:01]} 32. Qxd1 {[%emt 0:00:04]} Rxd1 {[%emt 0:00:01]} 33. c6 $36 {[%emt 0:00:03][%mdl 2048] White is more active.} Rc8 {[%emt 0:00:07]} (33... a6 $11) 34. Bxa7 $16 {[%emt 0:00:04] This bishop pair is nice.} f6 $2 {[%emt 0:00:01] Loses the game.} (34... Re8 $16 {was worth a try.} 35. Bf3 Rd2) 35. Rg1 $18 {[%emt 0:00:02]} Rd2 {[%emt 0:00:05]} (35... Rxg1 $142 36. Kxg1 (36. Bd5+ Kh8 $16) 36... Nf4) 36. b4 {[%emt 0:00:04][%cal Bb2b4,Bb4b5,Bb5b6][%mdl 32]} Ne5 {[%emt 0:00:00]} 37. b5 {[%emt 0:00:06]} g6 {[%emt 0:00:03]} 38. Be3 {[%emt 0:00:06]} Kh8 $2 {[%emt 0:00:04]} (38... Rdd8 39. b6 Nxc6) 39. Bxd2 {[%emt 0:00:01]} gxf5 {[%emt 0:00:04]} 40. Bd5 {[%emt 0:00:01][%csl Gd5][%cal Rg1g8]} Bd6 {[%emt 0:00:06]} 41. f4 {[%emt 0:00:03]} Nd3 {[%emt 0:00:03]} 42. b6 {[%emt 0:00:02] White mates.} Nxf4 {[%emt 0:00:02]} 43. Bxf4 {[%emt 0:00:01]} Bxf4+ {[%emt 0:00:01] KRB-KRB} 44. Kh1 {[%emt 0:00:00]} h5 {[%emt 0:00:08]} 45. a4 {[%emt 0:00:04][%cal Ba3a4,Ba4a5,Ba5a6,Ba6a7][%mdl 32]} Kh7 {[%emt 0:00:06]} 46. a5 {[%emt 0:00:01]} Bd2 {[%emt 0:00:02]} 47. a6 {[%emt 0:00:02]} Be3 {[%emt 0:00:01]} 48. Rb1 {[%emt 0:00:01]} Rd8 {[%emt 0:00:09] [#]} 49. a7 $1 {[%emt 0:00:02] Weighted Error Value: White=0.13 (very precise) /Black=0.43} 1-0

[Event "MCCT Chessable Masters-KO 2022"]
[Site "Online"]
[Date "2022.05.25"]
[Round "3.3"]
[White "Praggnanandhaa R"]
[Black "Ding, Liren"]
[Result "1/2-1/2"]
[ECO "D38"]
[WhiteElo "2642"]
[BlackElo "2806"]
[Annotator "TA"]
[PlyCount "133"]
[EventDate "2022.05.23"]
[EventType "k.o."]
[EventCountry "NET"]
[SourceTitle "playchess.com"]
[Source "ChessBase"]
[SourceQuality "1"]
[TimeControl "300+3"]

{[%evp 11,133,14,4,12,12,8,8,14,26,15,6,9,9,0,27,0,0,0,0,0,0,-8,0,0,0,0,0,-33,-35,-34,-13,-8,-18,-14,-9,-15,0,0,0,0,0,0,14,0,41,0,100,100,98,89,107,103,107,77,216,226,210,207,291,283,291,289,335,296,288,163,160,52,143,153,153,155,190,189,295,299,323,309,371,347,352,352,359,322,452,0,273,0,454,446,433,254,543,528,456,34,34,34,42,20,20,20,20,20,12,8,12,0,10,8,8,0,0,0,0,0,0,0,8,8,8,8,8,8]} 1. d4 {[%emt 0:00:00]} Nf6 {[%emt 0:00:00]} 2. c4 {[%emt 0:00:02]} e6 {[%emt 0:00:01]} 3. Nc3 {[%emt 0:00:07]} d5 {[%emt 0:00:00]} 4. Nf3 {[%emt 0:00:03]} Bb4 {[%emt 0:00:01]} 5. Qa4+ {[%emt 0:00:02]} Nc6 {[%emt 0:00:02]} 6. e3 {[%emt 0:00:00]} O-O {[%emt 0:00:01]} 7. Qc2 {[%emt 0:00:02] D38: Queen's Gambit Declined: Ragozin Defence (4 Nf3 Bb4).} Re8 {[%emt 0:00:01]} 8. Bd2 {[%emt 0:00:05]} Bf8 {[%emt 0:00:01] 8...Bf8 is better than 8...a6.} 9. Be2 {[%emt 0:00:01]} Nb4 {[%emt 0:00:03]} 10. Qb1 {[%emt 0:00:01]} dxc4 {[%emt 0:00:00]} 11. Bxc4 {[%emt 0:00:01]} b6 {[%emt 0:00:00]} 12. a3 {[%emt 0:00:00] [#]} Nbd5 $146 {[%emt 0:00:17]} ({Predecessor:} 12... Ba6 13. Bxa6 Nxa6 14. b4 c5 15. dxc5 bxc5 16. b5 Nc7 17. O-O a6 18. a4 Ncd5 {½-½ (61) Martirosyan,H (2621)-Petrosyan,M (2620) Yerevan 2022}) 13. e4 {[%emt 0:01:10]} Nxc3 {[%emt 0:00:03]} 14. Bxc3 {[%emt 0:00:01]} Bb7 {[%emt 0:00:01]} 15. Bd3 {[%emt 0:00:02]} h6 {[%emt 0:00:05]} 16. b4 {[%emt 0:00:17]} Rb8 {[%emt 0:00:05]} 17. O-O {[%emt 0:00:17]} c5 {[%emt 0:00:11]} 18. dxc5 {[%emt 0:00:25]} bxc5 {[%emt 0:00:00]} 19. Be5 {[%emt 0:00:03]} Rc8 $1 {[%emt 0:00:55]} 20. bxc5 {[%emt 0:00:21]} Rxc5 {[%emt 0:00:18]} 21. Bd4 {[%emt 0:00:41]} Rc7 {[%emt 0:00:10]} 22. Bxa7 {[%emt 0:00:07] Bb6 is the strong threat.} Qa8 {[%emt 0:00:05]} 23. Bb6 {[%emt 0:00:05]} Rcc8 {[%emt 0:00:08][%cal Rf6e4][%mdl 1024] Black has compensation.} 24. Re1 $36 {[%emt 0:00:04][%mdl 2048] White is pushing.} Nd7 {[%emt 0:00:19]} 25. Bd4 {[%emt 0:00:24]} Nc5 {[%emt 0:00:03]} 26. Bc2 {[%emt 0:00:14]} Red8 {[%emt 0:00:15]} 27. a4 {[%emt 0:00:06]} f5 {[%emt 0:00:07][%cal Rc5e4]} 28. Qa2 {[%emt 0:00:26]} (28. a5 $5 {[%cal Ra5a6]}) 28... fxe4 {[%emt 0:00:07]} (28... Kh7 $11) 29. Bxc5 $16 {[%emt 0:00:03]} Bd5 {[%emt 0:00:01] [#]} 30. Bxe4 $1 {[%emt 0:00:13]} Rxc5 {[%emt 0:01:11]} (30... Bxa2 31. Bxa8) 31. Bxd5 {[%emt 0:00:05]} exd5 {[%emt 0:00:00]} 32. a5 {[%emt 0:00:13] Threatens to win with a6.} Rdc8 {[%emt 0:00:11]} (32... Qa6 $16) 33. a6 $18 {[%emt 0:00:08]} Rc2 {[%emt 0:00:01]} 34. Qb3 {[%emt 0:00:02]} Qa7 {[%emt 0:00:15]} (34... R2c3 $142 35. Qb5 (35. Qb7 R3c7 $18) 35... R3c7) 35. Qxd5+ {[%emt 0:00:11]} (35. Qe3 Qxe3 36. fxe3 (36. Rxe3 Bc5 $11) 36... Bc5 $16) 35... Kh8 {[%emt 0:00:01]} 36. Rf1 {[%emt 0:00:04]} Bc5 {[%emt 0:00:41]} 37. Kh1 {[%emt 0:00:06]} Qa8 {[%emt 0:00:32]} 38. Qxa8 {[%emt 0:00:28]} (38. Qf5 $142 Bxf2 {[#]} 39. Ng5 $1 {[%mdl 512]} hxg5 40. Rxf2 Rc1+ 41. Rf1 Rxf1+ 42. Qxf1) 38... Rxa8 {[%emt 0:00:02]} 39. Rfc1 {[%emt 0:00:12]} (39. g3 $16) 39... Rxc1+ {[%emt 0:00:01]} (39... Rxa6 $1 $14 40. Rxc2 Rxa1+ 41. Ng1 Ra5) 40. Rxc1 $16 {[%emt 0:00:01]} Bxf2 $14 {[%emt 0:00:06][%mdl 4096] Endgame KRB-KRN} 41. Rc6 {[%emt 0:00:01]} Kg8 {[%emt 0:00:01]} 42. g4 {[%emt 0:00:04]} Kf7 {[%emt 0:00:02]} (42... Rb8 {was necessary.} 43. g5 hxg5 44. Nxg5 Be3) 43. Kg2 $18 {[%emt 0:00:02]} Be3 {[%emt 0:00:01]} 44. Ne5+ {[%emt 0:00:04]} Ke7 {[%emt 0:00:03]} 45. Kf3 {[%emt 0:00:01]} Bg1 {[%emt 0:00:08]} 46. h4 {[%emt 0:00:01]} Rb8 {[%emt 0:00:10]} 47. Ke4 {[%emt 0:00:06]} Rb5 {[%emt 0:00:06]} (47... Rb1 $142 48. Nf3 Bf2 49. Rc7+ Kd6 50. Rxg7 Rb4+ 51. Kd3 Rb3+ 52. Ke2 Rb2+ 53. Kd1 Be3) 48. Rc7+ $2 {[%emt 0:00:07]} ({White should try} 48. Rc1 $18 Bf2 49. Ra1) 48... Ke6 $2 {[%emt 0:00:02][%mdl 8192]} (48... Kd6 $1 $11 49. Rc6+ Ke7) 49. Rc6+ $2 {[%emt 0:00:01]} (49. Nc6 Kd6 50. Rc8 (50. Rxg7 Kxc6 51. Rg6+ Kc7 $16)) 49... Ke7 {[%emt 0:00:00]} 50. Rc1 {[%emt 0:00:05] Prevents Rb1.} Bb6 {[%emt 0:00:14]} 51. a7 {[%emt 0:00:05]} ({But not} 51. Nc6+ Ke6 52. Ra1 Kd7 $18) (51. Ra1 $142) 51... Rb4+ $2 {[%emt 0:00:02]} (51... Bxa7 {might work better.} 52. Nc6+ Ke6 53. Nxa7 Rb4+ 54. Kf3 Rb3+ 55. Kf2 Rb2+ 56. Kg3 Rb3+ 57. Kf2 Rb2+ 58. Kg3 Rb3+ 59. Kf2) 52. Kf5 {[%emt 0:00:04]} Ra4 {[%emt 0:00:01]} 53. Rb1 $2 {[%emt 0:00:02]} (53. Rc4 Ra5 54. Kg6 Kd6) ({White has to play} 53. Rd1 $18) 53... Bxa7 $14 {[%emt 0:00:06]} 54. Rb7+ {[%emt 0:00:01]} Kf8 {[%emt 0:00:00]} 55. Kg6 {[%emt 0:00:02] And now Kh7 would win.} Ra6+ $1 {[%emt 0:00:08] The position is equal.} (55... Bd4 $2 56. Nc6 Ba7 57. Rxa7 $18) 56. Kh7 {[%emt 0:00:01]} Bd4 {[%emt 0:00:00]} 57. Ng6+ {[%emt 0:00:07]} Ke8 {[%emt 0:00:01]} 58. Rb8+ {[%emt 0:00:04]} Kf7 {[%emt 0:00:08]} 59. Rb7+ {[%emt 0:00:04]} Ke8 {[%emt 0:00:02]} 60. h5 {[%emt 0:00:02]} Bf6 {[%emt 0:00:02] Prevents Nh4.} 61. Rxg7 {[%emt 0:00:05]} Bxg7 {[%emt 0:00:02]} 62. Kxg7 $11 {[%emt 0:00:00] KR-KN} Ra4 {[%emt 0:00:05]} 63. Kxh6 {[%emt 0:00:04]} Rxg4 {[%emt 0:00:01]} 64. Kg7 {[%emt 0:00:01]} Rg1 {[%emt 0:00:03]} 65. h6 {[%emt 0:00:01]} Rh1 {[%emt 0:00:01]} 66. h7 {[%emt 0:00:01]} Rxh7+ {[%emt 0:00:00]} 67. Kxh7 {[%emt 0:00:00] Blacks defense is rewarded with a draw.  Weighted Error Value: White=0.35/Black=0.38} 1/2-1/2